[Event "Late-Titled-Tuesday-Blitz-February-13-2024"]
[Site "Chess.com"]
[Date "2024.02.13"]
[Round "2"]
[White "Bryanl106"]
[Black "grzechu96"]
[Result "0-1"]
[WhiteElo "2521"]
[BlackElo "2762"]
[TimeControl "180+1"]
[EndTime "14:17:11 PST"]
[Termination "grzechu96 won by checkmate"]

1. e4 {[%clk 0:03:00.9]} 1... c5 {[%clk 0:03:00.1]} 2. Nf3 {[%clk 0:03:01.3]}
2... d6 {[%clk 0:02:59.9]} 3. d4 {[%clk 0:03:01.9]} 3... cxd4 {[%clk 0:03:00.8]}
4. Nxd4 {[%clk 0:03:02.7]} 4... Nf6 {[%clk 0:03:01]} 5. Nc3 {[%clk 0:03:03.5]}
5... a6 {[%clk 0:03:01.4]} 6. h3 {[%clk 0:03:04.1]} 6... e6 {[%clk 0:03:01.1]}
7. g4 {[%clk 0:03:04.3]} 7... h6 {[%clk 0:03:01.5]} 8. Bg2 {[%clk 0:03:02.6]}
8... Be7 {[%clk 0:03:01.8]} 9. O-O {[%clk 0:03:02]} 9... O-O {[%clk 0:03:00.5]}
10. Be3 {[%clk 0:03:01.9]} 10... Nc6 {[%clk 0:03:00.7]} 11. f4 {[%clk
0:02:58.9]} 11... Nd7 {[%clk 0:02:58.5]} 12. Nb3 {[%clk 0:02:58.1]} 12... b5
{[%clk 0:02:52.1]} 13. Qe2 {[%clk 0:02:54.9]} 13... Bb7 {[%clk 0:02:51]} 14.
Rad1 {[%clk 0:02:54.2]} 14... b4 {[%clk 0:02:46.5]} 15. Nb1 {[%clk 0:02:48.3]}
15... e5 {[%clk 0:02:45.3]} 16. N1d2 {[%clk 0:02:43.8]} 16... a5 {[%clk
0:02:45.7]} 17. Nc4 {[%clk 0:02:42.9]} 17... Ba6 {[%clk 0:02:43.6]} 18. Nbd2
{[%clk 0:02:35.2]} 18... exf4 {[%clk 0:02:39.3]} 19. Bxf4 {[%clk 0:02:35.2]}
19... Nde5 {[%clk 0:02:35]} 20. b3 {[%clk 0:02:34.9]} 20... Bg5 {[%clk
0:02:20.4]} 21. Qf2 {[%clk 0:02:27.9]} 21... Bxf4 {[%clk 0:02:17.8]} 22. Qxf4
{[%clk 0:02:28.2]} 22... Qe7 {[%clk 0:02:05.1]} 23. Nb6 {[%clk 0:02:16.9]} 23...
Bxf1 {[%clk 0:02:01.1]} 24. Rxf1 {[%clk 0:02:01.2]} 24... Qa7 {[%clk 0:01:47.4]}
25. Qf2 {[%clk 0:01:58.6]} 25... Rab8 {[%clk 0:01:45.4]} 26. Nd5 {[%clk
0:01:57.5]} 26... Qxf2+ {[%clk 0:01:45.5]} 27. Kxf2 {[%clk 0:01:58.4]} 27... Nd4
{[%clk 0:01:43.9]} 28. Rc1 {[%clk 0:01:53.8]} 28... Rfe8 {[%clk 0:01:40.4]} 29.
Ke3 {[%clk 0:01:53.4]} 29... Ne6 {[%clk 0:01:32.9]} 30. Nf3 {[%clk 0:01:40.9]}
30... Kf8 {[%clk 0:01:20.1]} 31. c4 {[%clk 0:01:31.4]} 31... bxc3 {[%clk
0:01:18.5]} 32. Nxc3 {[%clk 0:01:23.7]} 32... Rec8 {[%clk 0:01:17.5]} 33. Bf1
{[%clk 0:01:20.5]} 33... Nxf3 {[%clk 0:00:26.4]} 34. Kxf3 {[%clk 0:01:19.5]}
34... Nd8 {[%clk 0:00:25.7]} 35. Bc4 {[%clk 0:01:19]} 35... Nc6 {[%clk 0:00:26]}
36. Ke3 {[%clk 0:01:09.2]} 36... Ne5 {[%clk 0:00:26.5]} 37. Bd5 {[%clk
0:01:07.2]} 37... Rc5 {[%clk 0:00:18.3]} 38. Kd4 {[%clk 0:00:58.1]} 38... Ke7
{[%clk 0:00:16.9]} 39. Rf1 {[%clk 0:00:57]} 39... Rb4+ {[%clk 0:00:17]} 40. Bc4
{[%clk 0:00:55.9]} 40... Rcxc4+ {[%clk 0:00:17.4]} 41. bxc4 {[%clk 0:00:54]}
41... Rxc4+ {[%clk 0:00:18.3]} 42. Kd5 {[%clk 0:00:52.7]} 42... Rxc3 {[%clk
0:00:18]} 43. Rd1 {[%clk 0:00:52.5]} 43... Rxh3 {[%clk 0:00:12.9]} 44. a4 {[%clk
0:00:52.1]} 44... Rd3+ {[%clk 0:00:11.5]} 45. Rxd3 {[%clk 0:00:49.9]} 45... Nxd3
{[%clk 0:00:12.4]} 46. Kc4 {[%clk 0:00:50.5]} 46... Nc5 {[%clk 0:00:11.7]} 47.
e5 {[%clk 0:00:50.1]} 47... Nxa4 {[%clk 0:00:11.5]} 48. Kb5 {[%clk 0:00:51]}
48... Nc3+ {[%clk 0:00:11.3]} 49. Kxa5 {[%clk 0:00:50.9]} 49... dxe5 {[%clk
0:00:11.9]} 50. Kb4 {[%clk 0:00:51.8]} 50... Ne4 {[%clk 0:00:12.3]} 51. Kc4
{[%clk 0:00:52.7]} 51... Nf6 {[%clk 0:00:12.8]} 52. g5 {[%clk 0:00:52.9]} 52...
hxg5 {[%clk 0:00:13.2]} 53. Kc5 {[%clk 0:00:53.2]} 53... Ke6 {[%clk 0:00:13.8]}
54. Kc4 {[%clk 0:00:54.1]} 54... Kf5 {[%clk 0:00:14.7]} 55. Kd3 {[%clk 0:00:55]}
55... Kf4 {[%clk 0:00:15.6]} 56. Ke2 {[%clk 0:00:55.9]} 56... e4 {[%clk
0:00:16.3]} 57. Kf2 {[%clk 0:00:56.8]} 57... g4 {[%clk 0:00:17.1]} 58. Kf1
{[%clk 0:00:57.4]} 58... Nd5 {[%clk 0:00:18]} 59. Kg1 {[%clk 0:00:58.2]} 59...
f5 {[%clk 0:00:18.9]} 60. Kh1 {[%clk 0:00:59.1]} 60... g5 {[%clk 0:00:19.8]} 61.
Kh2 {[%clk 0:01:00]} 61... Ke3 {[%clk 0:00:20.4]} 62. Kg2 {[%clk 0:01:00.9]}
62... Kf4 {[%clk 0:00:21]} 63. Kg1 {[%clk 0:01:01.8]} 63... e3 {[%clk
0:00:21.8]} 64. Kh1 {[%clk 0:01:02.7]} 64... e2 {[%clk 0:00:21.9]} 65. Kh2
{[%clk 0:01:03.6]} 65... e1=Q {[%clk 0:00:22.5]} 66. Kg2 {[%clk 0:01:04.5]}
66... Qd2+ {[%clk 0:00:22.2]} 67. Kf1 {[%clk 0:01:05.4]} 67... Kg3 {[%clk
0:00:22.1]} 68. Kg1 {[%clk 0:01:06.2]} 68... Qd1# {[%clk 0:00:22.7]} 0-1

[Event "Late-Titled-Tuesday-Blitz-February-13-2024"]
[Site "Chess.com"]
[Date "2024.02.13"]
[Round "2"]
[White "jefferyx"]
[Black "MKlose11"]
[Result "1-0"]
[WhiteElo "3031"]
[BlackElo "2652"]
[TimeControl "180+1"]
[EndTime "14:17:12 PST"]
[Termination "jefferyx won by checkmate"]

1. e4 {[%clk 0:03:00.9]} 1... e6 {[%clk 0:02:53.9]} 2. d4 {[%clk 0:03:00.7]}
2... d5 {[%clk 0:02:52.6]} 3. e5 {[%clk 0:03:01.3]} 3... c5 {[%clk 0:02:52]} 4.
c3 {[%clk 0:03:01.9]} 4... Qb6 {[%clk 0:02:50]} 5. Nf3 {[%clk 0:03:02.1]} 5...
Bd7 {[%clk 0:02:50.3]} 6. Bd3 {[%clk 0:03:02.2]} 6... Bb5 {[%clk 0:02:49.7]} 7.
dxc5 {[%clk 0:03:02.7]} 7... Bxc5 {[%clk 0:02:47.5]} 8. b4 {[%clk 0:03:03.1]}
8... Bf8 {[%clk 0:02:45.7]} 9. Be3 {[%clk 0:03:02.6]} 9... Qa6 {[%clk
0:02:45.7]} 10. Bxb5+ {[%clk 0:03:01.2]} 10... Qxb5 {[%clk 0:02:45.9]} 11. Na3
{[%clk 0:02:35.7]} 11... Qa6 {[%clk 0:02:40.8]} 12. Qb3 {[%clk 0:02:34.2]} 12...
Nh6 {[%clk 0:02:27.5]} 13. Bxh6 {[%clk 0:02:09.9]} 13... gxh6 {[%clk 0:02:26.9]}
14. Nc2 {[%clk 0:02:10.8]} 14... Qd3 {[%clk 0:02:14.6]} 15. Rd1 {[%clk
0:02:07.4]} 15... Qe4+ {[%clk 0:02:13.3]} 16. Ne3 {[%clk 0:02:07.7]} 16... Nd7
{[%clk 0:02:12.2]} 17. Rd4 {[%clk 0:02:02.7]} 17... Qg6 {[%clk 0:02:12.1]} 18.
c4 {[%clk 0:02:01.3]} 18... dxc4 {[%clk 0:02:08.7]} 19. Nxc4 {[%clk 0:01:59.7]}
19... Be7 {[%clk 0:01:48.3]} 20. O-O {[%clk 0:01:57.7]} 20... Nb6 {[%clk
0:01:32.7]} 21. Nxb6 {[%clk 0:01:51.2]} 21... axb6 {[%clk 0:01:33.6]} 22. Qc4
{[%clk 0:01:51.8]} 22... Rg8 {[%clk 0:01:18.7]} 23. g3 {[%clk 0:01:49]} 23...
Kf8 {[%clk 0:01:14.6]} 24. Rd7 {[%clk 0:01:46.5]} 24... Qf5 {[%clk 0:01:08.7]}
25. Kg2 {[%clk 0:01:45]} 25... h5 {[%clk 0:01:05.9]} 26. Re1 {[%clk 0:01:26.6]}
26... h4 {[%clk 0:01:04.6]} 27. Nxh4 {[%clk 0:01:25.3]} 27... Bxh4 {[%clk
0:00:56.5]} 28. Qxh4 {[%clk 0:01:26.2]} 28... Rg4 {[%clk 0:00:53.8]} 29. Qh6+
{[%clk 0:01:20.7]} 29... Kg8 {[%clk 0:00:54.1]} 30. Red1 {[%clk 0:01:20.4]}
30... Qg5 {[%clk 0:00:48.1]} 31. Qxg5+ {[%clk 0:01:14.7]} 31... Rxg5 {[%clk
0:00:49]} 32. f4 {[%clk 0:01:14.5]} 32... Rxa2+ {[%clk 0:00:48.2]} 33. Kf3
{[%clk 0:01:08.9]} 33... Rh5 {[%clk 0:00:41.8]} 34. h4 {[%clk 0:01:09.1]} 34...
Rh6 {[%clk 0:00:37.7]} 35. Rxb7 {[%clk 0:00:55.9]} 35... Ra3+ {[%clk 0:00:33.4]}
36. Ke4 {[%clk 0:00:44.5]} 36... Rxg3 {[%clk 0:00:25.8]} 37. Rd8+ {[%clk
0:00:44.4]} 37... Kg7 {[%clk 0:00:25.4]} 38. Rdd7 {[%clk 0:00:45.3]} 38... Rb3
{[%clk 0:00:17.3]} 39. Rxf7+ {[%clk 0:00:38.7]} 39... Kg6 {[%clk 0:00:17.5]} 40.
Rf6+ {[%clk 0:00:37.4]} 40... Kh5 {[%clk 0:00:17.8]} 41. Rxh6+ {[%clk
0:00:37.9]} 41... Kxh6 {[%clk 0:00:18.7]} 42. Rxb6 {[%clk 0:00:38.6]} 42... Kh5
{[%clk 0:00:18]} 43. Rxe6 {[%clk 0:00:38.2]} 43... Rxb4+ {[%clk 0:00:18]} 44.
Kf5 {[%clk 0:00:39.1]} 44... h6 {[%clk 0:00:17.4]} 45. Rd6 {[%clk 0:00:25.7]}
45... Rxf4+ {[%clk 0:00:17]} 46. Kxf4 {[%clk 0:00:25.7]} 46... Kxh4 {[%clk
0:00:15.7]} 47. Rxh6# {[%clk 0:00:26.6]} 1-0

[Event "Late-Titled-Tuesday-Blitz-February-13-2024"]
[Site "Chess.com"]
[Date "2024.02.13"]
[Round "2"]
[White "nindjaxx8"]
[Black "platy3"]
[Result "0-1"]
[WhiteElo "2588"]
[BlackElo "2933"]
[TimeControl "180+1"]
[EndTime "14:17:15 PST"]
[Termination "platy3 won by resignation"]

1. d4 {[%clk 0:02:56.4]} 1... Nf6 {[%clk 0:03:00.1]} 2. c4 {[%clk 0:02:56.3]}
2... e6 {[%clk 0:03:00.6]} 3. Nc3 {[%clk 0:02:55.4]} 3... d5 {[%clk 0:02:59.4]}
4. cxd5 {[%clk 0:02:54.9]} 4... exd5 {[%clk 0:03:00.3]} 5. Bg5 {[%clk
0:02:55.6]} 5... c6 {[%clk 0:03:00.2]} 6. e3 {[%clk 0:02:55.4]} 6... Be7 {[%clk
0:02:58.3]} 7. Nf3 {[%clk 0:02:45.8]} 7... Bf5 {[%clk 0:02:54.2]} 8. Bd3 {[%clk
0:02:39.7]} 8... Bxd3 {[%clk 0:02:53.7]} 9. Qxd3 {[%clk 0:02:40.6]} 9... Nbd7
{[%clk 0:02:54.1]} 10. O-O {[%clk 0:02:40.8]} 10... O-O {[%clk 0:02:53.5]} 11.
Rfe1 {[%clk 0:02:33.4]} 11... h6 {[%clk 0:02:52.9]} 12. Bh4 {[%clk 0:02:24]}
12... Re8 {[%clk 0:02:52.6]} 13. Re2 {[%clk 0:02:22.8]} 13... a5 {[%clk
0:02:23.4]} 14. Rae1 {[%clk 0:02:21.2]} 14... Nf8 {[%clk 0:02:10.7]} 15. e4
{[%clk 0:02:17.1]} 15... dxe4 {[%clk 0:02:09.9]} 16. Nxe4 {[%clk 0:02:18]} 16...
Ne6 {[%clk 0:02:10.4]} 17. Nxf6+ {[%clk 0:02:09.5]} 17... Bxf6 {[%clk 0:02:09]}
18. Bxf6 {[%clk 0:02:09.4]} 18... Qxf6 {[%clk 0:02:09.9]} 19. d5 {[%clk
0:02:07.5]} 19... Red8 {[%clk 0:02:06.9]} 20. Qb3 {[%clk 0:02:03.8]} 20... Nc5
{[%clk 0:02:00.1]} 21. Qb6 {[%clk 0:01:51.3]} 21... Rxd5 {[%clk 0:01:57.1]} 22.
h3 {[%clk 0:01:49.6]} 22... Qd8 {[%clk 0:01:51.8]} 23. Re8+ {[%clk 0:01:40.6]}
23... Qxe8 {[%clk 0:01:52.1]} 24. Rxe8+ {[%clk 0:01:41.5]} 24... Rxe8 {[%clk
0:01:52.6]} 25. Qxa5 {[%clk 0:01:42.4]} 25... Ne6 {[%clk 0:01:53.1]} 26. Qa7
{[%clk 0:01:37.3]} 26... Re7 {[%clk 0:01:49.7]} 27. Kh2 {[%clk 0:01:30.7]} 27...
Red7 {[%clk 0:01:49.3]} 28. b4 {[%clk 0:01:27.3]} 28... Kh7 {[%clk 0:01:45.7]}
29. Qb8 {[%clk 0:01:20.2]} 29... Nd4 {[%clk 0:01:38.1]} 30. Nxd4 {[%clk
0:00:59.7]} 30... Rxd4 {[%clk 0:01:39]} 31. Qe5 {[%clk 0:01:00.4]} 31... R4d5
{[%clk 0:01:29]} 32. Qe4+ {[%clk 0:00:59.4]} 32... g6 {[%clk 0:01:28.3]} 33. a4
{[%clk 0:00:52.5]} 33... Kg7 {[%clk 0:01:24.1]} 34. Qc4 {[%clk 0:00:49.1]} 34...
R7d6 {[%clk 0:01:21.8]} 35. b5 {[%clk 0:00:48.8]} 35... cxb5 {[%clk 0:01:18.1]}
36. axb5 {[%clk 0:00:49.7]} 36... b6 {[%clk 0:01:17.6]} 37. Qc3+ {[%clk
0:00:48.5]} 37... Kh7 {[%clk 0:01:16.7]} 38. Qc7 {[%clk 0:00:48.7]} 38... Rf6
{[%clk 0:01:14.3]} 39. Qc4 {[%clk 0:00:41.9]} 39... Rff5 {[%clk 0:01:13.1]} 40.
f3 {[%clk 0:00:34]} 40... Rc5 {[%clk 0:01:02.1]} 41. Qd4 {[%clk 0:00:29.5]}
41... Rxb5 {[%clk 0:01:00.5]} 42. Qd7 {[%clk 0:00:29.2]} 42... Rbd5 {[%clk
0:00:58.2]} 43. Qb7 {[%clk 0:00:28.7]} 43... Rd6 {[%clk 0:00:53.3]} 44. g4
{[%clk 0:00:24.7]} 44... Rff6 {[%clk 0:00:51.2]} 45. Kg3 {[%clk 0:00:24]} 45...
Rd3 {[%clk 0:00:50.7]} 46. Kg2 {[%clk 0:00:24.1]} 46... Rdxf3 {[%clk 0:00:49.6]}
47. h4 {[%clk 0:00:24.6]} 47... Rf2+ {[%clk 0:00:48.7]} 48. Kg1 {[%clk
0:00:24.2]} 48... R2f4 {[%clk 0:00:48]} 49. Qc8 {[%clk 0:00:21.8]} 49... h5
{[%clk 0:00:42.9]} 50. gxh5 {[%clk 0:00:21.7]} 50... gxh5 {[%clk 0:00:43.8]} 51.
Qc3 {[%clk 0:00:21.1]} 51... Rg6+ {[%clk 0:00:42.6]} 52. Qg3 {[%clk 0:00:19.9]}
0-1

[Event "Late-Titled-Tuesday-Blitz-February-13-2024"]
[Site "Chess.com"]
[Date "2024.02.13"]
[Round "2"]
[White "Walter_White_Poland"]
[Black "shirovin"]
[Result "1-0"]
[WhiteElo "2440"]
[BlackElo "2107"]
[TimeControl "180+1"]
[EndTime "14:17:17 PST"]
[Termination "Walter_White_Poland won on time"]

1. d4 {[%clk 0:02:57]} 1... Nf6 {[%clk 0:02:58.5]} 2. Bf4 {[%clk 0:02:56.3]}
2... g6 {[%clk 0:02:58.1]} 3. e3 {[%clk 0:02:54]} 3... Bg7 {[%clk 0:02:56.7]} 4.
h3 {[%clk 0:02:54.2]} 4... O-O {[%clk 0:02:54.6]} 5. Nf3 {[%clk 0:02:54.1]} 5...
d6 {[%clk 0:02:55]} 6. Be2 {[%clk 0:02:52.5]} 6... c5 {[%clk 0:02:54.8]} 7. O-O
{[%clk 0:02:50.3]} 7... cxd4 {[%clk 0:02:53.9]} 8. exd4 {[%clk 0:02:49.8]} 8...
Nc6 {[%clk 0:02:54.5]} 9. c3 {[%clk 0:02:49.4]} 9... e5 {[%clk 0:02:48.1]} 10.
dxe5 {[%clk 0:02:43.2]} 10... Nh5 {[%clk 0:02:46.9]} 11. Bg5 {[%clk 0:02:32.7]}
11... f6 {[%clk 0:02:25.1]} 12. exf6 {[%clk 0:02:22.2]} 12... Nxf6 {[%clk
0:02:24]} 13. Na3 {[%clk 0:02:17.5]} 13... d5 {[%clk 0:02:11.1]} 14. Nb5 {[%clk
0:02:14]} 14... a6 {[%clk 0:02:02.4]} 15. Nbd4 {[%clk 0:02:13.1]} 15... Qb6
{[%clk 0:01:56.9]} 16. Qb3 {[%clk 0:02:11]} 16... Qxb3 {[%clk 0:01:33.9]} 17.
axb3 {[%clk 0:02:11.9]} 17... Ne4 {[%clk 0:01:32.1]} 18. Be3 {[%clk 0:02:02.5]}
18... Bd7 {[%clk 0:01:27.5]} 19. Rfd1 {[%clk 0:02:01.7]} 19... Rae8 {[%clk
0:01:23.9]} 20. b4 {[%clk 0:02:01]} 20... Ng3 {[%clk 0:00:54.1]} 21. Bd3 {[%clk
0:01:42.3]} 21... Ne4 {[%clk 0:00:48.6]} 22. Nxc6 {[%clk 0:01:40.4]} 22... Bxc6
{[%clk 0:00:43.8]} 23. Nd4 {[%clk 0:01:33.7]} 23... Bd7 {[%clk 0:00:40.2]} 24.
b5 {[%clk 0:01:29.9]} 24... Bxd4 {[%clk 0:00:18.9]} 25. Bxd4 {[%clk 0:01:26.6]}
25... axb5 {[%clk 0:00:19.1]} 26. Ra5 {[%clk 0:01:22]} 26... Nf6 {[%clk
0:00:09.5]} 27. Bxb5 {[%clk 0:01:16.9]} 27... Rd8 {[%clk 0:00:07.7]} 28. Bxd7
{[%clk 0:01:15.4]} 28... Rxd7 {[%clk 0:00:07.6]} 29. Bxf6 {[%clk 0:01:14.9]}
29... Rxf6 {[%clk 0:00:06.8]} 30. Raxd5 {[%clk 0:01:15.4]} 30... Re7 {[%clk
0:00:06.3]} 31. Rd8+ {[%clk 0:01:08.8]} 31... Kg7 {[%clk 0:00:05.7]} 32. R8d7
{[%clk 0:01:09.2]} 32... Kf8 {[%clk 0:00:04.3]} 33. Rxe7 {[%clk 0:01:08]} 33...
Kxe7 {[%clk 0:00:04.8]} 34. f3 {[%clk 0:01:07.4]} 34... Rb6 {[%clk 0:00:04.7]}
35. b4 {[%clk 0:01:06.9]} 35... Ra6 {[%clk 0:00:04.9]} 36. Rd2 {[%clk
0:01:01.5]} 36... Ke6 {[%clk 0:00:04.4]} 37. Kf2 {[%clk 0:01:01.2]} 37... Ra3
{[%clk 0:00:04.1]} 38. Rc2 {[%clk 0:00:58.9]} 38... Kd5 {[%clk 0:00:03.7]} 39.
Ke3 {[%clk 0:00:57.4]} 39... Kc4 {[%clk 0:00:03.7]} 40. Kd2 {[%clk 0:00:53.4]}
40... Rb3 {[%clk 0:00:02.9]} 41. g3 {[%clk 0:00:51.8]} 41... Ra3 {[%clk
0:00:03]} 42. h4 {[%clk 0:00:50.9]} 42... Ra1 {[%clk 0:00:03]} 43. b5 {[%clk
0:00:41.5]} 43... Rg1 {[%clk 0:00:02.3]} 44. g4 {[%clk 0:00:37.6]} 44... Rg2+
{[%clk 0:00:01.6]} 45. Kc1 {[%clk 0:00:37.7]} 45... Rg1+ {[%clk 0:00:01.5]} 46.
Kb2 {[%clk 0:00:37.7]} 1-0

[Event "Late-Titled-Tuesday-Blitz-February-13-2024"]
[Site "Chess.com"]
[Date "2024.02.13"]
[Round "2"]
[White "effefe"]
[Black "rhungaski"]
[Result "0-1"]
[WhiteElo "2297"]
[BlackElo "2519"]
[TimeControl "180+1"]
[EndTime "14:17:18 PST"]
[Termination "rhungaski won on time"]

1. d4 {[%clk 0:03:00.9]} 1... g6 {[%clk 0:02:59.3]} 2. c4 {[%clk 0:03:01.4]}
2... Bg7 {[%clk 0:02:58.7]} 3. Nc3 {[%clk 0:03:01.3]} 3... c5 {[%clk 0:02:57.2]}
4. d5 {[%clk 0:03:01.2]} 4... Bxc3+ {[%clk 0:02:56.7]} 5. bxc3 {[%clk
0:03:02.1]} 5... f5 {[%clk 0:02:56.9]} 6. e4 {[%clk 0:03:02.5]} 6... fxe4 {[%clk
0:02:56.8]} 7. f3 {[%clk 0:03:03.1]} 7... e5 {[%clk 0:02:56.6]} 8. Qc2 {[%clk
0:03:00.4]} 8... d6 {[%clk 0:02:31.4]} 9. h4 {[%clk 0:02:54.7]} 9... h6 {[%clk
0:02:25.2]} 10. fxe4 {[%clk 0:02:50.1]} 10... Bg4 {[%clk 0:02:18.9]} 11. Nf3
{[%clk 0:02:48.7]} 11... Nf6 {[%clk 0:02:17.1]} 12. Be3 {[%clk 0:02:42.2]} 12...
Nbd7 {[%clk 0:02:14.6]} 13. Bd3 {[%clk 0:02:39.7]} 13... Qa5 {[%clk 0:02:13.2]}
14. O-O {[%clk 0:02:37.6]} 14... O-O-O {[%clk 0:02:12.6]} 15. Rab1 {[%clk
0:02:33.7]} 15... Rdf8 {[%clk 0:02:06.6]} 16. Nh2 {[%clk 0:02:19.1]} 16... Bh5
{[%clk 0:02:01.8]} 17. Qd2 {[%clk 0:02:11.2]} 17... g5 {[%clk 0:01:52.2]} 18.
hxg5 {[%clk 0:02:09.4]} 18... hxg5 {[%clk 0:01:52.2]} 19. Bxg5 {[%clk
0:02:10.2]} 19... Ne8 {[%clk 0:01:49.3]} 20. Be7 {[%clk 0:01:47.9]} 20... Rfg8
{[%clk 0:01:47.9]} 21. Rf2 {[%clk 0:01:38.3]} 21... Qc7 {[%clk 0:01:43.9]} 22.
Rbf1 {[%clk 0:01:34.3]} 22... Nb6 {[%clk 0:01:43.1]} 23. Bg5 {[%clk 0:01:25.5]}
23... Qg7 {[%clk 0:01:39.9]} 24. Be3 {[%clk 0:01:14.4]} 24... Qh7 {[%clk
0:01:38.5]} 25. Kh1 {[%clk 0:00:16.5]} 25... Be2 {[%clk 0:01:34]} 26. g3 {[%clk
0:00:10.9]} 26... Bxf1 {[%clk 0:01:25.6]} 27. Bxf1 {[%clk 0:00:11.8]} 27...
Qxe4+ {[%clk 0:01:24.3]} 28. Bg2 {[%clk 0:00:08.6]} 28... Qxc4 {[%clk 0:01:22]}
29. Kg1 {[%clk 0:00:07.6]} 29... Rf8 {[%clk 0:01:18.2]} 30. Nf1 {[%clk
0:00:06.9]} 30... Qg4 {[%clk 0:01:13.3]} 31. Rxf8 {[%clk 0:00:04.6]} 31... Rxf8
{[%clk 0:01:12.2]} 32. Bf2 {[%clk 0:00:05.4]} 32... Qf5 {[%clk 0:01:08.5]} 33.
Ne3 {[%clk 0:00:03.5]} 33... Qb1+ {[%clk 0:01:06.3]} 34. Nf1 {[%clk 0:00:02]}
34... Kb8 {[%clk 0:01:05.3]} 35. Qh6 {[%clk 0:00:01.3]} 35... Nd7 {[%clk
0:01:01.5]} 36. Qh4 {[%clk 0:00:01.7]} 36... Nef6 {[%clk 0:01:00.1]} 37. Bh3
{[%clk 0:00:01.2]} 37... Qg6 {[%clk 0:00:58.6]} 38. Be6 {[%clk 0:00:01.3]} 38...
Qg7 {[%clk 0:00:54.7]} 39. Qh3 {[%clk 0:00:01.7]} 39... Rh8 {[%clk 0:00:53.8]}
40. Nh2 {[%clk 0:00:02.4]} 40... Rxh3 {[%clk 0:00:52.7]} 41. Bxh3 {[%clk
0:00:03.3]} 41... Nxd5 {[%clk 0:00:50.2]} 42. c4 {[%clk 0:00:03.2]} 42... Nf4
{[%clk 0:00:49.3]} 43. Bf5 {[%clk 0:00:01.5]} 43... Nf6 {[%clk 0:00:48.1]} 44.
Kh1 {[%clk 0:00:01.1]} 44... N4h5 {[%clk 0:00:46.7]} 0-1

[Event "Late-Titled-Tuesday-Blitz-February-13-2024"]
[Site "Chess.com"]
[Date "2024.02.13"]
[Round "2"]
[White "chenxiaoyuer"]
[Black "andrzej"]
[Result "1-0"]
[WhiteElo "2760"]
[BlackElo "2520"]
[TimeControl "180+1"]
[EndTime "14:17:19 PST"]
[Termination "chenxiaoyuer won on time"]

1. e4 {[%clk 0:03:00.9]} 1... e5 {[%clk 0:03:00.1]} 2. Nf3 {[%clk 0:03:00.7]}
2... Nf6 {[%clk 0:03:00.6]} 3. Nxe5 {[%clk 0:02:58.6]} 3... d6 {[%clk
0:03:01.1]} 4. Nd3 {[%clk 0:02:58.1]} 4... Nxe4 {[%clk 0:03:01.4]} 5. Qe2 {[%clk
0:02:58.7]} 5... Qe7 {[%clk 0:03:00.4]} 6. Nf4 {[%clk 0:02:59.1]} 6... c6 {[%clk
0:03:01.1]} 7. d4 {[%clk 0:02:58.5]} 7... Bf5 {[%clk 0:02:48.9]} 8. c3 {[%clk
0:02:44.8]} 8... Nd7 {[%clk 0:02:47.5]} 9. f3 {[%clk 0:02:39.7]} 9... Nef6
{[%clk 0:02:47.3]} 10. g4 {[%clk 0:02:34.7]} 10... Bg6 {[%clk 0:02:37]} 11. h4
{[%clk 0:02:33.6]} 11... O-O-O {[%clk 0:02:35.1]} 12. Nd2 {[%clk 0:02:24.2]}
12... Re8 {[%clk 0:02:15.9]} 13. Qxe7 {[%clk 0:02:20.8]} 13... Rxe7+ {[%clk
0:02:11.3]} 14. Kf2 {[%clk 0:02:21]} 14... h5 {[%clk 0:02:10.4]} 15. g5 {[%clk
0:02:20]} 15... Ng8 {[%clk 0:02:00.7]} 16. Nxg6 {[%clk 0:02:18.3]} 16... fxg6
{[%clk 0:02:01.6]} 17. Bd3 {[%clk 0:02:15.6]} 17... Re6 {[%clk 0:01:56.8]} 18.
Ne4 {[%clk 0:02:00]} 18... d5 {[%clk 0:01:50.9]} 19. Ng3 {[%clk 0:01:59.7]}
19... Bd6 {[%clk 0:01:49.7]} 20. Bd2 {[%clk 0:01:58.8]} 20... Ne7 {[%clk
0:01:49.4]} 21. Rae1 {[%clk 0:01:58.8]} 21... Rxe1 {[%clk 0:01:48.4]} 22. Rxe1
{[%clk 0:01:59.7]} 22... Rf8 {[%clk 0:01:47]} 23. Rxe7 {[%clk 0:01:58.8]} 23...
Bxe7 {[%clk 0:01:45]} 24. Bxg6 {[%clk 0:01:59.7]} 24... Rh8 {[%clk 0:01:29.5]}
25. Nxh5 {[%clk 0:01:59.4]} 25... Nf8 {[%clk 0:01:24.7]} 26. Bf5+ {[%clk
0:01:58.9]} 26... Kd8 {[%clk 0:01:23.7]} 27. Nxg7 {[%clk 0:01:55.6]} 27... Rxh4
{[%clk 0:01:22]} 28. Kg2 {[%clk 0:01:49.2]} 28... Bd6 {[%clk 0:01:17.4]} 29. Kf1
{[%clk 0:01:39.4]} 29... Rh2 {[%clk 0:01:13.8]} 30. Be1 {[%clk 0:01:37]} 30...
Ke7 {[%clk 0:01:11]} 31. Bg4 {[%clk 0:01:32.6]} 31... Kf7 {[%clk 0:01:06.1]} 32.
Nh5 {[%clk 0:01:24.5]} 32... Ng6 {[%clk 0:01:02.3]} 33. Bf2 {[%clk 0:01:21]}
33... Rh1+ {[%clk 0:00:57.9]} 34. Ke2 {[%clk 0:01:08.8]} 34... Rb1 {[%clk
0:00:58.8]} 35. Kd3 {[%clk 0:01:07.5]} 35... Rxb2 {[%clk 0:00:57.2]} 36. Be3
{[%clk 0:01:08.1]} 36... Rxa2 {[%clk 0:00:54.6]} 37. f4 {[%clk 0:01:08.3]} 37...
Nh4 {[%clk 0:00:37.4]} 38. f5 {[%clk 0:01:06.1]} 38... Ng2 {[%clk 0:00:38]} 39.
g6+ {[%clk 0:01:05.6]} 39... Kg8 {[%clk 0:00:36.4]} 40. Bh6 {[%clk 0:01:00.3]}
40... Ne1+ {[%clk 0:00:17.1]} 41. Ke3 {[%clk 0:01:00.2]} 41... Nc2+ {[%clk
0:00:15.1]} 42. Ke2 {[%clk 0:00:51.3]} 42... Nxd4+ {[%clk 0:00:14.4]} 43. Kd3
{[%clk 0:00:50.4]} 43... Nxf5 {[%clk 0:00:11.4]} 44. Bxf5 {[%clk 0:00:50.9]}
44... Be5 {[%clk 0:00:10.9]} 45. Be6+ {[%clk 0:00:49.7]} 45... Kh8 {[%clk
0:00:09.8]} 46. Bf4 {[%clk 0:00:47.3]} 46... Bg7 {[%clk 0:00:05.6]} 47. Bf7
{[%clk 0:00:45.2]} 47... Ra3 {[%clk 0:00:04.1]} 48. Nxg7 {[%clk 0:00:45.6]}
48... Kxg7 {[%clk 0:00:04.7]} 49. Be5+ {[%clk 0:00:46.5]} 49... Kf8 {[%clk
0:00:04.6]} 50. Bd6+ {[%clk 0:00:47]} 50... Kg7 {[%clk 0:00:04.4]} 51. Bxa3
{[%clk 0:00:47.9]} 1-0